fUSD/lending_fUSD_20250720
["ID","MTS","AMOUNT","RATE_DAILY","PERIOD"]
[373551447,1753038438611,480.0,0.00030136,120]
[373551448,1753038438853,5617.29,0.00030136,120]
[373551449,1753038439258,480.0,0.00030136,120]
[373551450,1753038439320,925.27,0.00030136,120]
[373551451,1753038440192,480.0,0.00030136,120]
[373551452,1753038440618,922.56,0.00030136,120]
[373551453,1753038440886,922.56,0.00030136,120]
[373551454,1753038440996,1632.46,0.00030136,120]
[373551455,1753038441098,922.56,0.00030136,120]
[373551456,1753038441300,480.0,0.00030136,120]
[373551457,1753038441344,922.56,0.00030136,120]
[373551458,1753038441596,922.56,0.00030136,120]
[373551459,1753038441946,922.56,0.00030136,120]
[373551460,1753038442022,462.39797071,0.00030136,120]
[373551461,1753038442149,922.56,0.00030136,120]
[373551462,1753038442194,460.0,0.00030136,120]
[373551463,1753038442385,922.56,0.00030136,120]
[373551464,1753038442672,922.56,0.00030136,120]
[373551465,1753038442948,922.56,0.00030136,120]
[373551466,1753038443493,922.56,0.00030136,120]
[373551467,1753038443661,922.56,0.00030136,120]
[373551468,1753038443737,922.56,0.00030136,120]
[373551469,1753038444081,922.56,0.00030136,120]
[373551470,1753038444657,922.56,0.00030136,120]
[373551471,1753038444720,480.0,0.00030136,120]
[373551472,1753038444897,2715.42,0.00030136,120]
[373551473,1753038444930,922.56,0.00030136,120]
[373551474,1753038444968,571.48,0.00030136,120]
[373551475,1753038445012,480.0,0.00030136,120]
[373551476,1753038445106,487.46,0.00030136,120]
[373551477,1753038445150,922.56,0.00030136,120]
[373551478,1753038445213,657.2,0.00030136,120]
[373551479,1753038445258,922.56,0.00030136,120]
[373551480,1753038446666,461.07437066,0.00030136,120]
[373551481,1753038447687,480.0,0.00030136,120]
[373551482,1753038447723,922.56,0.00030136,120]
[373551483,1753038447813,280.94917932,0.00030136,120]
[373551484,1753038447977,922.56,0.00030136,120]
[373551485,1753038448212,922.56,0.00030136,120]
[373551486,1753038448557,631.67,0.00030136,120]
[373551487,1753038448713,480.0,0.00030136,120]
[373551488,1753038448792,922.56,0.00030136,120]
[373551489,1753038449036,922.56,0.00030136,120]
[373551490,1753038449269,922.74,0.00030136,120]
[373551491,1753038449306,1682.51,0.00030136,120]
[373551492,1753038449418,3037.79,0.00030136,120]
[373551493,1753038450983,480.0,0.00030136,120]
[373551494,1753038451022,1755.61,0.00030136,120]
[373551495,1753038451573,480.0,0.00030136,120]
[373551496,1753038453113,-236.67495737,0.00017616,2]
[373551497,1753038453396,480.0,0.00030136,120]
[373551498,1753038453759,480.0,0.00030136,120]
[373551499,1753038453860,480.0,0.00030136,120]
[373551500,1753038456205,480.0,0.00030136,120]
[373551501,1753038456406,468.43196961,0.00030136,120]
[373551502,1753038456439,848.17,0.00030136,120]
[373551503,1753038457385,1755.56,0.00030136,120]
[373551504,1753038457417,864.53,0.00030136,120]
[373551505,1753038457541,480.0,0.00030136,120]
[373551506,1753038457704,841.92,0.00030136,120]
[373551507,1753038458079,480.0,0.00030136,120]
[373551508,1753038458870,480.0,0.00030136,120]
[373551509,1753038459008,259.92569853,0.00030136,120]
[373551510,1753038459234,480.0,0.00030136,120]
[373551511,1753038460305,1824.15,0.00030136,120]
[373551512,1753038460364,480.0,0.00030136,120]
[373551513,1753038460839,440.0,0.00030136,120]
[373551514,1753038461638,3056.01,0.00030136,120]
[373551515,1753038462573,480.0,0.00030136,120]
[373551516,1753038462605,2091.26,0.00030136,120]
[373551517,1753038463489,25442.73,0.00030136,120]
[373551518,1753038464029,25442.73,0.00030136,120]
[373551519,1753038464295,4756.57,0.00030136,120]
[373551520,1753038464823,480.0,0.00030136,120]
[373551521,1753038464867,480.0,0.00030136,120]
[373551522,1753038465189,3519.38,0.00030136,120]
[373551523,1753038467535,1286.96,0.00030136,120]
[373551524,1753038467568,1693.22,0.00030136,120]
[373551525,1753038467656,462.41681892,0.00030136,120]
[373551526,1753038467823,480.0,0.00030136,120]
[373551527,1753038468179,480.0,0.00030136,120]
[373551528,1753038469166,5424.76,0.00030136,120]
[373551529,1753038470134,440.0,0.00030136,120]
[373551530,1753038471545,480.0,0.00030136,120]
[373551531,1753038472068,3109.27,0.00030136,120]
[373551532,1753038472149,480.0,0.00030136,120]
[373551533,1753038472810,528.61,0.00030136,120]
[373551534,1753038472980,480.0,0.00030136,120]
[373551535,1753038474742,460.0,0.00030136,120]
[373551536,1753038475008,5383.24,0.00030136,120]
[373551537,1753038475044,480.0,0.00030136,120]
[373551538,1753038475489,480.0,0.00030136,120]
[373551539,1753038475710,2748.81,0.00030136,120]
[373551540,1753038476006,54299.19,0.00030136,120]
[373551541,1753038476606,8818.98,0.00030136,120]
[373551542,1753038476643,480.0,0.00030136,120]
[373551543,1753038477851,3192.84,0.00030136,120]
[373551544,1753038477912,480.0,0.00030136,120]
[373551545,1753038477967,460.0,0.00030136,120]
[373551546,1753038479115,440.0,0.00030136,120]
[373551547,1753038479379,1928.45,0.00030136,120]
[373551548,1753038479417,2004.13,0.00030136,120]
[373551549,1753038480978,799.93,0.00030136,120]
[373551550,1753038482932,497.53,0.00030136,120]
[373551551,1753038483742,480.0,0.00030136,120]
[373551552,1753038484524,480.0,0.00030136,120]
[373551553,1753038484558,480.0,0.00030136,120]
[373551554,1753038484925,1800.47,0.00030136,120]
[373551555,1753038485939,5162.48,0.00030136,120]
[373551556,1753038487067,480.0,0.00030136,120]
[373551557,1753038487160,480.0,0.00030136,120]
[373551558,1753038487630,1140.12,0.00030136,120]
[373551559,1753038487857,300.0,0.00030136,120]
[373551560,1753038488561,390.53771721,0.00030136,120]
[373551561,1753038489123,460.0,0.00030136,120]
[373551562,1753038489167,480.0,0.00030136,120]
[373551563,1753038489729,1188.6,0.00030136,120]
[373551564,1753038490368,6452.33,0.00030136,120]
[373551565,1753038490677,668.87,0.00030136,120]
[373551566,1753038490802,722.01,0.00030136,120]
[373551567,1753038491689,400.0,0.00030136,120]
[373551568,1753038491955,480.0,0.00030136,120]
[373551569,1753038492113,480.0,0.00030136,120]
[373551570,1753038493498,480.0,0.00030136,120]
[373551571,1753038494527,480.0,0.00030136,120]
[373551572,1753038495715,10721.6,0.00030136,120]
[373551573,1753038495969,3212.6,0.00030136,120]
[373551574,1753038496267,604.36,0.00030136,120]
[373551575,1753038497821,607.95,0.00030136,120]
[373551576,1753038498467,2411.43,0.00030136,120]
[373551577,1753038499385,480.0,0.00030136,120]
[373551578,1753038499517,480.0,0.00030136,120]
[373551579,1753038500014,5443.93,0.00030136,120]
[373551580,1753038500381,480.0,0.00030136,120]
[373551581,1753038501027,1092.62,0.00030136,120]
[373551582,1753038501929,301.77335978,0.00030136,120]
[373551583,1753038501996,536.2421588,0.00030136,120]
[373551584,1753038502517,1708.04,0.00030136,120]
[373551585,1753038502940,480.0,0.00030136,120]
[373551586,1753038503226,480.0,0.00030136,120]
[373551587,1753038504121,4520.63,0.00030136,120]
[373551588,1753038504882,480.0,0.00030136,120]
[373551589,1753038504918,480.0,0.00030136,120]
[373551590,1753038505336,460.0,0.00030136,120]
[373551591,1753038505607,1378.17,0.00030136,120]
[373551592,1753038505817,480.0,0.00030136,120]
[373551593,1753038506103,1242.7,0.00030136,120]
[373551594,1753038506191,5414.75,0.00030136,120]
[373551596,1753038506886,480.0,0.00030136,120]
[373551597,1753038508428,3024.68,0.00030136,120]
[373551598,1753038509545,480.0,0.00030136,120]
[373551599,1753038510315,480.0,0.00030136,120]
[373551600,1753038510375,3368.51,0.00030136,120]
[373551601,1753038510910,527.58012957,0.00030136,120]
[373551602,1753038510941,440.0,0.00030136,120]
[373551603,1753038511332,480.0,0.00030136,120]
[373551604,1753038511955,1725.45,0.00030136,120]
[373551605,1753038512741,263.71049372,0.00030136,120]
[373551606,1753038513233,669.64,0.00030136,120]
[373551607,1753038514709,480.0,0.00030136,120]
[373551608,1753038514956,480.0,0.00030136,120]
[373551609,1753038515371,480.0,0.00030136,120]
[373551610,1753038515821,480.0,0.00030136,120]
[373551611,1753038516565,2441.42,0.00030136,120]
[373551612,1753038516619,480.0,0.00030136,120]
[373551613,1753038517935,373.57121855,0.00030136,120]
[373551614,1753038517985,1645.34,0.00030136,120]
[373551615,1753038518164,530.14,0.00030136,120]
[373551616,1753038518922,495.18,0.00030136,120]
[373551617,1753038519021,3004.17,0.00030136,120]
[373551618,1753038519946,3634.75,0.00030136,120]
[373551619,1753038520043,2166.56,0.00030136,120]
[373551620,1753038521047,1106.85,0.00030136,120]
[373551621,1753038521294,480.0,0.00030136,120]
[373551622,1753038521684,996.35,0.00030136,120]
[373551623,1753038522057,1007.03,0.00030136,120]
[373551624,1753038522512,480.0,0.00030136,120]
[373551625,1753038523442,480.0,0.00030136,120]
[373551626,1753038524647,480.0,0.00030136,120]
[373551627,1753038524683,2972.63,0.00030136,120]
[373551628,1753038524761,691.92,0.00030136,120]
[373551629,1753038525028,480.0,0.00030136,120]
[373551630,1753038525842,480.0,0.00030136,120]
[373551631,1753038527157,887.25,0.00030136,120]
[373551632,1753038527334,632.48,0.00030136,120]
[373551633,1753038527376,480.0,0.00030136,120]
[373551634,1753038527988,480.0,0.00030136,120]
[373551635,1753038529652,480.0,0.00030136,120]
[373551636,1753038529687,1261.63,0.00030136,120]
[373551637,1753038529893,480.0,0.00030136,120]
[373551638,1753038530294,508.03,0.00030136,120]
[373551639,1753038531330,1016.49,0.00030136,120]
[373551640,1753038532114,8225.6,0.00030136,120]
[373551641,1753038532150,1636.87,0.00030136,120]
[373551642,1753038532661,200.7008941,0.00030136,120]
[373551643,1753038533677,679.84,0.00030136,120]
[373551644,1753038535575,420.0,0.00030136,120]
[373551645,1753038537412,2810.08,0.00030136,120]
[373551646,1753038539513,534.45235142,0.00030136,120]
[373551647,1753038541066,480.0,0.00030136,120]
[373551648,1753038541642,2637.9,0.00030136,120]
[373551649,1753038542798,1521.91,0.00030136,120]
[373551650,1753038542906,2527.99,0.00030136,120]
[373551651,1753038542942,1345.98,0.00030136,120]
[373551652,1753038544305,480.0,0.00030136,120]
[373551653,1753038544628,945.52,0.00030136,120]
[373551654,1753038544689,480.0,0.00030136,120]
[373551655,1753038545337,14287.6,0.00030136,120]
[373551656,1753038546319,480.0,0.00030136,120]
[373551657,1753038547633,2613.18,0.00030136,120]
[373551658,1753038547975,480.0,0.00030136,120]
[373551659,1753038548647,480.0,0.00030136,120]
[373551660,1753038549804,480.0,0.00030136,120]
[373551661,1753038553051,1090.44,0.00030136,120]
[373551662,1753038553192,729.6,0.00030136,120]
[373551663,1753038553802,562.01,0.00030136,120]
[373551664,1753038553915,182.67847915,0.00030136,120]
[373551665,1753038554270,480.0,0.00030136,120]
[373551666,1753038555682,420.0,0.00030136,120]
[373551667,1753038557224,480.0,0.00030136,120]
[373551668,1753038557556,480.0,0.00030136,120]
[373551669,1753038558259,1933.79,0.00030136,120]
[373551670,1753038558658,480.0,0.00030136,120]
[373551671,1753038558947,313.31310719,0.00030136,120]
[373551672,1753038560032,8603.89,0.00030136,120]
[373551673,1753038560811,530.08,0.00030136,120]
[373551674,1753038560849,480.0,0.00030136,120]
[373551675,1753038561699,5738.34,0.00030136,120]
[373551676,1753038561764,956.56,0.00030136,120]
[373551677,1753038563964,480.0,0.00030136,120]
[373551678,1753038564120,689.87,0.00030136,120]
[373551679,1753038564544,7882.87,0.00030136,120]
[373551680,1753038564583,1491.81,0.00030136,120]
[373551681,1753038564783,10710.01,0.00030136,120]
[373551682,1753038564965,480.0,0.00030136,120]
[373551683,1753038566087,480.0,0.00030136,120]
[373551684,1753038566819,1834.37,0.00030136,120]
[373551685,1753038567141,795.43,0.00030136,120]
[373551686,1753038567525,480.0,0.00030136,120]
[373551687,1753038567633,7572.57,0.00030136,120]
[373551688,1753038569255,480.0,0.00030136,120]
[373551689,1753038569308,2779.24,0.00030136,120]
[373551690,1753038573059,480.0,0.00030136,120]
[373551691,1753038573129,544.41,0.00030136,120]
[373551692,1753038574194,3092.62,0.00030136,120]
[373551693,1753038574761,480.0,0.00030136,120]
[373551694,1753038576091,1901.69,0.00030136,120]
[373551695,1753038576124,480.0,0.00030136,120]
[373551696,1753038576344,3916.19,0.00030136,120]
[373551697,1753038576392,2851.74,0.00030136,120]
[373551698,1753038578250,442.82452569,0.00030136,120]
[373551699,1753038578862,1687.81,0.00030136,120]
[373551700,1753038579467,488.71800289,0.00030136,120]
[373551701,1753038579570,480.0,0.00030136,120]
[373551702,1753038579888,4612.64,0.00030136,120]
[373551703,1753038580108,480.0,0.00030136,120]
[373551704,1753038580663,289.66210684,0.00030136,120]
[373551705,1753038580844,3125.13,0.00030136,120]
[373551706,1753038580921,468.17622576,0.00030136,120]
[373551707,1753038581953,1045.01,0.00030136,120]
[373551708,1753038581998,500.0,0.00030136,120]
[373551709,1753038582471,500.0,0.00030136,120]
[373551710,1753038583392,500.0,0.00030136,120]
[373551711,1753038583564,500.0,0.00030136,120]
[373551712,1753038583626,500.0,0.00030136,120]
[373551713,1753038583680,500.0,0.00030136,120]
[373551714,1753038583746,1869.89,0.00030136,120]
[373551715,1753038583825,500.0,0.00030136,120]
[373551716,1753038583978,500.0,0.00030136,120]
[373551717,1753038584213,500.0,0.00030136,120]
[373551718,1753038584443,500.0,0.00030136,120]
[373551719,1753038584715,500.0,0.00030136,120]
[373551720,1753038584780,3500.11,0.00030136,120]
[373551721,1753038585576,500.0,0.00030136,120]
[373551722,1753038585634,500.0,0.00030136,120]
[373551723,1753038585838,201.36,0.00030136,120]
[373551724,1753038585871,480.0,0.00030136,120]
[373551725,1753038586260,981.6,0.00030136,120]
[373551726,1753038586507,480.0,0.00030136,120]
[373551727,1753038587196,528.14,0.00030136,120]
[373551728,1753038587392,1026.01,0.00030136,120]
[373551729,1753038587434,971.47,0.00030136,120]
[373551730,1753038588455,2115.47,0.00030136,120]
[373551731,1753038589227,1876.83,0.00030136,120]
[373551732,1753038589414,480.0,0.00030136,120]
[373551733,1753038589450,385.13140201,0.00030136,120]
[373551734,1753038590300,480.0,0.00030136,120]
[373551735,1753038590684,480.0,0.00030136,120]
[373551736,1753038591111,480.0,0.00030136,120]
[373551737,1753038591275,480.0,0.00030136,120]
[373551738,1753038593381,460.0,0.00030136,120]
[373551739,1753038594860,480.0,0.00030136,120]
[373551740,1753038595318,708.02,0.00030136,120]
[373551741,1753038596064,2963.76,0.00030136,120]
[373551742,1753038596235,462.26369643,0.00030136,120]
[373551743,1753038596541,1798.43,0.00030136,120]
[373551744,1753038596863,402.37133268,0.00030136,120]
[373551745,1753038597141,1188.74,0.00030136,120]
[373551746,1753038597516,2071.88,0.00030136,120]
[373551747,1753038598760,2788.29,0.00030136,120]
[373551748,1753038599165,919.39,0.00030136,120]
[373551749,1753038600490,480.0,0.00030136,120]
[373551750,1753038601492,400.0,0.00030136,120]
[373551751,1753038601554,1792.7,0.00030136,120]
[373551752,1753038601916,480.0,0.00030136,120]
[373551753,1753038603816,438.28772761,0.00030136,120]
[373551754,1753038604852,1757.94,0.00030136,120]
[373551755,1753038604979,480.0,0.00030136,120]
[373551756,1753038605049,938.03,0.00030136,120]
[373551757,1753038605101,460.0,0.00030136,120]
[373551758,1753038605174,480.0,0.00030136,120]
[373551759,1753038606628,7128.86,0.00030136,120]
[373551762,1753038608892,742.97,0.00030136,120]
[373551763,1753038608947,1398.17,0.00030136,120]
[373551764,1753038609975,315.15927901,0.000211,28]
[373551765,1753038610293,3753.02,0.00030136,120]
[373551766,1753038610699,480.0,0.00030136,120]
[373551767,1753038611483,2033.29,0.00030136,120]
[373551768,1753038611723,1108.15,0.00030136,120]
[373551769,1753038612325,480.0,0.00030136,120]
[373551770,1753038612628,460.0,0.00030136,120]
[373551771,1753038612882,608.40999998,0.00030136,120]
[373551772,1753038613057,1429.42,0.00030136,120]
[373551773,1753038613133,480.0,0.00030136,120]
[373551774,1753038614240,480.0,0.00030136,120]
[373551775,1753038616213,3513.81,0.00030136,120]
[373551776,1753038616311,1008.75,0.00030136,120]
[373551777,1753038616555,1460.56,0.00030136,120]
[373551778,1753038616770,480.0,0.00030136,120]
[373551779,1753038617236,1329.29,0.00030136,120]
[373551780,1753038619098,1718.0,0.00030136,120]
[373551781,1753038619701,480.0,0.00030136,120]
[373551782,1753038619746,480.0,0.00030136,120]
[373551783,1753038620444,480.0,0.00030136,120]
[373551784,1753038620525,5810.29,0.00030136,120]
[373551785,1753038620760,1691.06,0.00030136,120]
[373551786,1753038620825,480.0,0.00030136,120]
[373551787,1753038621170,480.0,0.00030136,120]
[373551788,1753038623047,480.0,0.00030136,120]
[373551789,1753038624446,3354.27,0.00030136,120]
[373551790,1753038624491,480.0,0.00030136,120]
[373551791,1753038626201,424.37066904,0.00030136,120]
[373551792,1753038627164,480.0,0.00030136,120]
[373551793,1753038627244,838.8,0.00030136,120]
[373551794,1753038627414,661.84,0.00030136,120]
[373551795,1753038628803,480.0,0.00030136,120]
[373551796,1753038630856,2672.11,0.00030136,120]
[373551797,1753038631563,3919.18,0.00030136,120]
[373551798,1753038631723,4684.65,0.00030136,120]
[373551805,1753038631784,530.29,0.00030136,120]
[373551811,1753038631959,-11.57332411,0.00017616,2]
[373551812,1753038631968,-918.05465181,0.00017622,2]
[373551813,1753038631977,-199.51,0.00017722,2]
[373551814,1753038631987,-320.41,0.0001775,2]
[373551815,1753038631996,-564.94,0.00017943,2]
[373551816,1753038632006,-215.00149094,0.00017952,2]
[373551817,1753038632017,-349.93850906,0.00017952,2]
[373551818,1753038632027,-564.94,0.00017961,2]
[373551819,1753038632037,-549.99978193,0.00017971,2]
[373551820,1753038632048,-14.94021807,0.00017971,2]
[373551821,1753038632057,-564.94,0.0001798,2]
[373551822,1753038632066,-564.94,0.0001799,2]
[373551823,1753038632076,-564.94,0.00017999,2]
[373551824,1753038632085,-164.22,0.00018004,2]
[373551825,1753038632095,-564.94,0.00018009,2]
[373551826,1753038632104,-564.94,0.00018018,2]
[373551827,1753038632115,-564.94,0.00018028,2]
[373551828,1753038632125,-1200.0,0.00018035,2]
[373551829,1753038632135,-1200.0,0.00018036,2]
[373551830,1753038632144,-564.94,0.00018037,2]
[373551831,1753038632153,-564.94,0.00018046,2]
[373551832,1753038632163,-179.7695246,0.00018053,2]
[373551833,1753038632172,-300.0,0.00018055,2]
[373551834,1753038632182,-300.0,0.00018055,2]
[373551835,1753038632191,-564.94,0.00018056,2]
[373551836,1753038632200,-564.94,0.00018065,2]
[373551837,1753038632209,-250.0,0.0001807,2]
[373551838,1753038632219,-564.94,0.00018075,2]
[373551839,1753038632228,-8677.49418795,0.0001808,2]
[373551840,1753038632241,-8304.63632525,0.0001808,2]
[373551841,1753038632252,-1683.59340435,0.0001808,2]
[373551842,1753038632264,-991.97608245,0.0001808,2]
[373551843,1753038632274,-564.94,0.00018084,2]
[373551844,1753038632283,-285.73745079,0.00018094,2]
[373551845,1753038632317,-279.20254921,0.00018094,2]
[373551846,1753038632326,-564.94,0.00018103,2]
[373551847,1753038632335,-564.94,0.00018113,2]
[373551848,1753038632344,-564.94,0.00018122,2]
[373551849,1753038632354,-786.43,0.00018165,2]
[373551850,1753038632365,-478.06,0.00018176,2]
[373551851,1753038632374,-231.28369723,0.00018218,2]
[373551852,1753038632384,-231.28369723,0.00018218,2]
[373551853,1753038632393,-151.0,0.00018218,2]
[373551854,1753038632403,-7006.86082687,0.00018218,2]
[373551855,1753038632412,-155.05103952,0.00018218,2]
[373551856,1753038632421,-457.46450928,0.00018218,2]
[373551857,1753038632431,-1000.0,0.00018236,2]
[373551859,1753038632440,-3173.47,0.0001827,2]
[373551860,1753038632449,-205.73,0.00018329,2]
[373551861,1753038632459,-600.0,0.00018397,2]
[373551862,1753038632468,-230.72,0.0001841,2]
[373551863,1753038632478,-355.25,0.00018466,2]
[373551864,1753038632488,-168.61,0.00018496,2]
[373551866,1753038632497,-4986.22,0.0001863,2]
[373551868,1753038632507,-1000.0,0.0001863,2]
[373551869,1753038632517,-1166.0,0.00018645,2]
[373551870,1753038632526,-889.0,0.00018645,2]
[373551871,1753038632535,-400.0,0.000187,6]
[373551872,1753038632545,-239.84119403,0.00018766,2]
[373551873,1753038632554,-317.0,0.0001878,2]
[373551874,1753038632563,-174.356807,0.00018794,2]
[373551875,1753038632573,-313.14,0.000188,2]
[373551877,1753038632583,-900.0,0.000188,6]
[373551878,1753038632592,-40373.27549539,0.00018876,2]
[373551879,1753038632659,379.9,0.00030136,120]
[373551880,1753038632672,-663.75211154,0.00018876,2]
[373551881,1753038633241,480.0,0.00030136,120]
[373551882,1753038633579,8873.55,0.00030136,120]
[373551883,1753038634888,480.0,0.00030136,120]
[373551884,1753038635167,2076.29,0.00030136,120]
[373551885,1753038635310,480.0,0.00030136,120]
[373551886,1753038635886,587.33,0.00030136,120]
[373551887,1753038637609,480.0,0.00030136,120]
[373551888,1753038637939,-385.60297779,0.00018876,2]
[373551889,1753038637951,-272.75351161,0.00018876,2]
[373551890,1753038637963,-34741.06854319,0.00018876,2]
[373551891,1753038638040,-3177.259047,0.00018876,2]
[373551892,1753038638094,-4456.57099225,0.00018876,2]
[373551893,1753038638105,-1351.94157984,0.00018876,2]
[373551918,1753038638426,5568.19,0.00030136,120]
[373551951,1753038638734,581.48230539,0.00030136,120]
[373552070,1753038639992,-762.5,0.00018876,2]
[373552073,1753038640003,-1358.2155586,0.00018876,2]
[373552079,1753038640049,-962.70634916,0.00018876,2]
[373552081,1753038640061,-44.50490631,0.00018876,2]
[373552083,1753038640071,-4515.18439869,0.00018877,2]
[373552087,1753038640099,-7583.99045308,0.00018877,2]
[373552110,1753038640311,-296.9,0.00018877,2]
[373552117,1753038640366,-17244.64129053,0.00018877,2]
[373552119,1753038640377,-592.7985099,0.00018877,2]
[373552122,1753038640389,-452.54240034,0.00018877,2]
[373552127,1753038640432,1096.71,0.00030136,120]
[373552141,1753038640554,480.0,0.00030136,120]
[373552215,1753038641251,480.0,0.00030136,120]
[373552400,1753038642936,-1129.88225452,0.00018877,2]
[373552403,1753038642948,-1238.1741318,0.00018877,2]
[373552405,1753038642959,-1989.9999,0.00018877,2]
[373552424,1753038643099,-2094.0642161,0.00018877,2]
[373552451,1753038643358,480.0,0.00030136,120]
[373552457,1753038643398,4960.08,0.00030136,120]
[373552493,1753038643689,480.0,0.00030136,120]
[373552517,1753038644115,2370.35,0.00030136,120]
[373552541,1753038644334,480.0,0.00030136,120]
[373552550,1753038644422,991.63,0.00030136,120]
[373552594,1753038644846,1421.53,0.00030136,120]
[373552647,1753038645367,3020.99,0.00030136,120]
[373552728,1753038646088,-43198.41242531,0.00018877,2]
[373552740,1753038646193,908.94,0.00030136,120]
[373552742,1753038646209,-1813.2130059,0.00018877,2]
[373552748,1753038646252,-1865.47750223,0.00018877,2]
[373552750,1753038646263,-4534.87058428,0.00018877,2]
[373552752,1753038646273,-1300.0,0.000189,6]
[373552754,1753038646282,-1758.0,0.000189,2]
[373552756,1753038646292,-265.99231857,0.000189,2]
[373552758,1753038646301,-51811.13709715,0.00018964,2]
[373552767,1753038646414,-8999.37309269,0.00018964,2]
[373552769,1753038646426,-5401.49024106,0.00018964,2]
[373552775,1753038646471,-22338.15064178,0.00018964,2]
[373552777,1753038646480,-265.99231837,0.00018969,2]
[373552779,1753038646489,-210.86573235,0.00018974,2]
[373552781,1753038646499,-476.8747822,0.00018974,2]
[373552783,1753038646508,-839.31074571,0.00018974,2]
[373552785,1753038646517,-160.0,0.00018974,2]
[373552787,1753038646527,-775.02753237,0.00018976,2]
[373552789,1753038646536,-232.36,0.00018983,2]
[373552791,1753038646546,-929.3,0.00018986,2]
[373552793,1753038646555,-927.09225,0.0001899,2]
[373552795,1753038646566,-313.14,0.00019,2]
[373552797,1753038646576,-3000.0,0.00019,5]
[373552799,1753038646586,-1000.0,0.00019,2]
[373552801,1753038646596,-205.73,0.00019016,2]
[373552803,1753038646605,-6050.0,0.00019037,2]
[373552805,1753038646615,-862.0,0.00019037,2]
[373552807,1753038646627,-4126.0,0.00019037,2]
[373552808,1753038646637,-21364.0,0.00019037,2]
[373552809,1753038646646,-265.99231837,0.00019038,2]
[373552810,1753038646655,-687.12510054,0.00019067,2]
[373552811,1753038646666,-351.33,0.00019068,2]
[373552812,1753038646675,-157.37225872,0.00019078,2]
[373552813,1753038646685,-302.08679342,0.00019078,2]
[373552814,1753038646695,-592.67737186,0.00019078,2]
[373552815,1753038646705,-783.1924943,0.00019078,2]
[373552816,1753038646715,-152.6,0.00019078,2]
[373552817,1753038646724,-2500.0,0.00019078,2]
[373552818,1753038646733,-2536.7915,0.00019078,2]
[373552819,1753038646743,-478.06,0.00019085,2]
[373552820,1753038646752,-927.09225,0.0001909,2]
[373552821,1753038646761,-702.534,0.00019091,2]
[373552822,1753038646770,-265.99231837,0.00019107,2]
[373552823,1753038646779,-1017.0,0.0001911,2]